fUSD/lending_fUSD_20251224
["ID","MTS","AMOUNT","RATE_DAILY","PERIOD"]
[399679396,1766612792398,340.05218719,0.00013013,2]
[399679397,1766612793668,500.0,0.00013013,2]
[399679398,1766612793818,572.5,0.00013013,2]
[399679399,1766612793925,500.0,0.00013013,2]
[399679400,1766612794036,500.0,0.00013013,2]
[399679401,1766612794106,500.0,0.00013013,2]
[399679402,1766612794208,500.0,0.00013013,2]
[399679403,1766612794283,500.0,0.00013013,2]
[399679404,1766612794791,500.0,0.00013013,2]
[399679405,1766612829202,500.0,0.00013013,2]
[399679406,1766612858393,883.99,0.00013007,2]
[399679407,1766612860513,198.52148752,0.00013013,2]
[399679408,1766612860550,301.47851248,0.00013013,2]
[399679409,1766612881569,300.0,0.00013013,2]
[399679410,1766612881875,150.0,0.00013013,2]
[399679411,1766612888980,221.0,0.00013013,2]
[399679412,1766612892334,500.0,0.00013013,2]
[399679413,1766612924340,500.0,0.00013013,2]
[399679414,1766612956609,500.0,0.00013013,2]
[399679415,1766612988736,500.0,0.00013013,2]
[399679416,1766613001161,300.0,0.00013013,2]
[399679417,1766613016433,1401.66025577,0.00013,2]
[399679418,1766613021011,450.9928827,0.00013013,2]
[399679419,1766613029080,4808.09118879,0.00012914,2]
[399679429,1766613032236,-40676.66149866,0.00013014,2]
[399679431,1766613032248,-13018.16971562,0.00013014,2]
[399679433,1766613032262,-672.07029798,0.00013014,2]
[399679436,1766613032275,-2640.28225799,0.00013014,2]
[399679439,1766613032289,-10403.26898785,0.00013014,2]
[399679442,1766613032304,-908.31160856,0.00013014,2]
[399679446,1766613032320,-11270.1521036,0.00013014,2]
[399679449,1766613032333,-1131.66823526,0.00013014,2]
[399679453,1766613032345,-8864.91545666,0.00013014,2]
[399679457,1766613032362,-412.77728069,0.00013014,2]
[399679460,1766613032375,-1414.9164902,0.00013014,2]
[399679463,1766613032387,-1392.50603388,0.00013014,2]
[399679466,1766613032407,-705.89360131,0.00013014,2]
[399679479,1766613034157,-390.88751809,0.00013014,2]
[399679480,1766613037588,-432.54429703,0.00013014,2]
[399679488,1766613038040,-1370.716068,0.00013014,2]
[399679489,1766613038052,-4614.1180144,0.00013014,2]
[399679490,1766613038100,-829.57102,0.00013014,2]
[399679491,1766613038218,-294.3711004,0.00013014,2]
[399679492,1766613038332,-3349.6,0.00013014,2]
[399679521,1766613040028,-9347.2832205,0.00013014,2]
[399679526,1766613040491,-1.7e-07,0.00013014,2]
[399679530,1766613040570,-174.23,0.00013014,2]
[399679543,1766613043086,-66657.64910273,0.00013014,2]
[399679544,1766613043098,-25186.3396482,0.00013014,2]
[399679545,1766613043111,-802.58799771,0.00013014,2]
[399679546,1766613043123,-18914.78402,0.00013014,2]
[399679547,1766613043205,-225.69646867,0.00013014,2]
[399679548,1766613043405,-805.48711043,0.00013014,2]
[399679549,1766613043418,-416.27920025,0.00013014,2]
[399679555,1766613045277,-384.26459056,0.00013014,2]
[399679560,1766613046059,-2457.0,0.00013014,2]
[399679561,1766613046231,-884.71,0.00013014,2]
[399679568,1766613046824,-457.27471206,0.00013014,2]
[399679569,1766613050918,-500.0,0.00013014,2]
[399679570,1766613052544,66.78716026,0.00013013,2]
[399679571,1766613052967,433.21283974,0.00013013,2]
[399679572,1766613053592,-225.12323911,0.00013014,2]
[399679573,1766613057291,323.70392853,0.00013013,2]
[399679574,1766613061315,300.0,0.00013013,2]
[399679575,1766613062108,150.0,0.00013013,2]
[399679576,1766613063781,300.0,0.00013013,2]
[399679577,1766613079273,-192.53637258,0.00013014,2]
[399679578,1766613081912,-428.53637258,0.00013014,2]
[399679579,1766613083246,-221.46362742,0.00013014,2]
[399679580,1766613084822,500.0,0.00013013,2]
[399679581,1766613084880,500.0,0.00013013,2]
[399679582,1766613084951,224.45760124,0.00013013,2]
[399679583,1766613094122,1378.56,0.00012754,2]
[399679584,1766613094375,163.708,0.00012754,2]
[399679585,1766613099198,347.7188,0.00012914,2]
[399679586,1766613117766,571.46362742,0.00013013,2]
[399679587,1766613121559,300.0,0.00013013,2]
[399679588,1766613149227,500.0,0.00013013,2]
[399679589,1766613180581,500.0,0.00013013,2]
[399679590,1766613181532,300.0,0.00013013,2]
[399679591,1766613188194,165.10888867,0.00012914,2]
[399679592,1766613212254,500.0,0.00013013,2]
[399679593,1766613215588,2542.0763144,0.00012966,2]
[399679594,1766613215620,3474.4936856,0.00012966,2]
[399679595,1766613241800,150.0,0.00013013,2]
[399679596,1766613243771,500.0,0.00013013,2]
[399679597,1766613269294,2266.618365,0.00012914,2]
[399679598,1766613276063,500.0,0.00013013,2]
[399679599,1766613280277,191.07080816,0.00012883,2]
[399679600,1766613301542,300.0,0.00013013,2]
[399679601,1766613301588,300.0,0.00013013,2]
[399679602,1766613301631,1200.0,0.00013013,2]
[399679603,1766613308933,500.0,0.00013013,2]
[399679604,1766613340374,500.0,0.00013013,2]
[399679605,1766613356950,615.83470383,0.00012914,2]
[399679606,1766613363909,150.0,0.00012912,2]
[399679607,1766613372234,500.0,0.00013013,2]
[399679608,1766613417542,4327.28206992,0.00012914,2]
[399679609,1766613418484,298.09330512,0.00013013,2]
[399679610,1766613421611,300.0,0.00013013,2]
[399679611,1766613421854,150.0,0.00013013,2]
[399679612,1766613436409,167.72911297,0.00013013,2]
[399679613,1766613436441,332.27088703,0.00013013,2]
[399679614,1766613468386,500.0,0.00013013,2]
[399679615,1766613499525,500.0,0.00013013,2]
[399679616,1766613531793,500.0,0.00013013,2]
[399679617,1766613563939,500.0,0.00013013,2]
[399679618,1766613596150,500.0,0.00013013,2]
[399679619,1766613601218,1200.0,0.00013013,2]
[399679620,1766613601803,150.0,0.00013013,2]
[399679621,1766613618631,300.0,0.00012742,2]
[399679622,1766613628099,-9428.54637258,0.00013014,2]
[399679623,1766613628191,-10000.01,0.00013014,2]
[399679624,1766613628328,-10000.01,0.00013014,2]
[399679625,1766613629604,-10000.01,0.00013014,2]
[399679626,1766613629688,-10000.01,0.00013014,2]
[399679627,1766613629836,-10000.01,0.00013014,2]
[399679628,1766613630432,-10000.01,0.00013014,2]
[399679629,1766613630464,-10000.01,0.00013014,2]
[399679630,1766613642769,208.34,0.00012797,2]
[399679631,1766613661224,300.0,0.00013013,2]
[399679632,1766613662962,-9491.67,0.00013014,2]
[399679633,1766613663148,-10000.01,0.00013014,2]
[399679634,1766613663435,-10000.01,0.00013014,2]
[399679635,1766613663498,-10000.01,0.00013014,2]
[399679636,1766613663519,-10000.01,0.00013014,2]
[399679637,1766613663593,-10000.01,0.00013014,2]
[399679638,1766613663681,-10000.01,0.00013014,2]
[399679639,1766613663814,-10000.01,0.00013014,2]
[399679640,1766613663959,-10000.01,0.00013014,2]
[399679641,1766613665162,-380.24507444,0.00013014,2]
[399679642,1766613665950,-10000.01,0.00013014,2]
[399679643,1766613678199,-1000.0,0.00012774,2]
[399679644,1766613678243,-1000.0,0.0001278,2]
[399679645,1766613678276,-1000.0,0.00012789,2]
[399679646,1766613678308,-1000.0,0.00012789,2]
[399679647,1766613678339,-1000.0,0.00012797,2]
[399679648,1766613678628,-1000.0,0.00012797,2]
[399679649,1766613678660,-1000.0,0.00012804,2]
[399679650,1766613678691,-1000.0,0.00012818,2]
[399679651,1766613678721,-980.8413967,0.00012831,2]
[399679652,1766613678753,-1000.0,0.00012837,2]
[399679653,1766613678863,-1000.0,0.00012841,2]
[399679654,1766613678894,-1000.0,0.00012843,2]
[399679655,1766613678926,-1000.0,0.00012844,2]
[399679656,1766613678958,-1000.0,0.00012851,2]
[399679657,1766613678991,-1000.0,0.00012855,2]
[399679658,1766613679210,-1000.0,0.0001287,2]
[399679659,1766613679244,-1000.0,0.0001287,2]
[399679660,1766613679277,-1000.0,0.00012871,2]
[399679661,1766613679311,-1000.0,0.00012871,2]
[399679662,1766613679343,-1000.0,0.00012872,2]
[399679663,1766613679560,-1000.0,0.00012872,2]
[399679664,1766613679592,-1000.0,0.00012879,2]
[399679665,1766613679626,-1000.0,0.0001289,2]
[399679666,1766613679658,-1000.0,0.00012896,2]
[399679667,1766613679691,-1000.0,0.00012902,2]
[399679668,1766613679908,-1000.0,0.00012906,2]
[399679669,1766613679941,-1000.0,0.00012927,2]
[399679670,1766613679974,-1000.0,0.00012934,2]
[399679671,1766613680007,-1000.0,0.00012943,2]
[399679672,1766613680040,-1000.0,0.00012961,2]
[399679673,1766613680556,-1000.0,0.00012962,2]
[399679674,1766613680590,-1000.0,0.00012965,2]
[399679675,1766613680621,-1000.0,0.00012978,2]
[399679676,1766613680657,-1000.0,0.00012989,2]
[399679677,1766613680690,-1000.0,0.00012994,2]
[399679678,1766613681943,-38.3772066,0.00013001,2]
[399679679,1766613681959,-0.01,0.00013001,2]
[399679680,1766613682161,-961.6127934,0.00013001,2]
[399679681,1766613690125,150.0,0.00012954,2]
[399679682,1766613690180,150.0,0.00012872,2]
[399679683,1766613690329,150.0,0.00012961,2]
[399679684,1766613690385,150.0,0.00012931,2]
[399679685,1766613698663,1852.42,0.00012781,2]
[399679686,1766613699578,5624.3644132,0.00012914,2]
[399679687,1766613699614,10000.01,0.00012914,2]
[399679688,1766613699651,10000.01,0.00012914,2]
[399679689,1766613699685,10000.01,0.00012914,2]
[399679690,1766613699719,10000.01,0.00012914,2]
[399679691,1766613699755,10000.01,0.00012914,2]
[399679692,1766613699790,10000.01,0.00012914,2]
[399679693,1766613699823,10000.01,0.00012914,2]
[399679694,1766613699856,10000.01,0.00012914,2]
[399679695,1766613711385,-708.55765,0.00012849,2]
[399679696,1766613721743,300.0,0.00012913,2]
[399679697,1766613735369,1000.0,0.0001281,2]
[399679698,1766613735544,1000.0,0.00012808,2]
[399679699,1766613735651,1000.0,0.00012862,2]
[399679700,1766613735746,1000.0,0.00012835,2]
[399679701,1766613735957,500.0,0.000176,30]
[399679702,1766613736008,1000.0,0.00012881,2]
[399679703,1766613736072,1000.0,0.00012756,2]
[399679704,1766613736117,1000.0,0.00012823,2]
[399679705,1766613736159,1000.0,0.00012879,2]
[399679706,1766613736226,282.8947,0.00012814,2]
[399679707,1766613736250,717.1053,0.00012814,2]
[399679708,1766613736305,507.37067278,0.00012865,2]
[399679709,1766613736450,1000.0,0.00012853,2]
[399679710,1766613736596,1000.0,0.00012783,2]
[399679711,1766613736691,500.0,0.000176,30]
[399679712,1766613736937,500.0,0.000176,30]
[399679713,1766613737181,500.0,0.00017,30]
[399679714,1766613743679,503.95354778,0.000176,30]
[399679715,1766613779660,2338.79178891,0.00012814,2]
[399679716,1766613782271,150.0,0.00012913,2]
[399679717,1766613783215,300.0,0.00012913,2]
[399679718,1766613785136,500.0,0.00012913,2]
[399679719,1766613785179,258.04929108,0.00012913,2]
[399679720,1766613785216,603.49891247,0.00012913,2]
[399679721,1766613785452,259.36324004,0.00012913,2]
[399679722,1766613785500,500.0,0.00012913,2]
[399679723,1766613785657,500.0,0.00012913,2]
[399679724,1766613786144,1365.83079472,0.00012904,2]
[399679725,1766613786186,195.96567398,0.00012904,2]
[399679726,1766613787820,500.0,0.00012913,2]
[399679727,1766613787868,500.0,0.00012913,2]
[399679728,1766613787913,500.0,0.00012913,2]
[399679729,1766613787957,343.57563792,0.00012913,2]
[399679730,1766613787995,500.0,0.00012913,2]
[399679731,1766613788082,500.0,0.00012913,2]
[399679732,1766613788125,170.67859004,0.00012913,2]
[399679733,1766613788168,644.44876618,0.00012913,2]
[399679734,1766613788259,500.0,0.00012913,2]
[399679735,1766613788355,500.0,0.00012913,2]
[399679736,1766613788416,500.0,0.00012913,2]
[399679737,1766613788501,500.0,0.00012913,2]
[399679738,1766613788549,500.0,0.00012913,2]
[399679739,1766613788611,500.0,0.00012913,2]
[399679740,1766613788662,500.0,0.00012913,2]
[399679741,1766613788732,500.0,0.00012913,2]
[399679742,1766613788832,500.0,0.00012913,2]
[399679743,1766613788902,400.47287383,0.00012913,2]
[399679744,1766613788951,500.0,0.00012913,2]
[399679745,1766613788999,500.0,0.00012913,2]
[399679746,1766613789046,244.86845805,0.00012913,2]
[399679747,1766613789076,255.13154195,0.00012913,2]
[399679748,1766613789120,500.0,0.00012913,2]
[399679749,1766613789189,500.0,0.00012913,2]
[399679750,1766613789258,500.0,0.00012913,2]
[399679751,1766613789308,500.0,0.00012913,2]
[399679752,1766613789387,500.0,0.00012913,2]
[399679753,1766613789450,500.0,0.00012913,2]
[399679754,1766613789495,500.0,0.00012913,2]
[399679755,1766613789536,500.0,0.00012913,2]
[399679756,1766613789601,500.0,0.00012913,2]
[399679757,1766613789643,500.0,0.00012913,2]
[399679758,1766613789693,500.0,0.00012913,2]
[399679759,1766613789739,500.0,0.00012913,2]
[399679760,1766613789782,500.0,0.00012913,2]
[399679761,1766613789824,500.0,0.00012913,2]
[399679762,1766613790179,500.0,0.00012913,2]
[399679763,1766613790226,1200.0,0.00012913,2]
[399679764,1766613790275,500.0,0.00012913,2]
[399679765,1766613790326,500.0,0.00012913,2]
[399679766,1766613790369,44.87845805,0.00012913,2]
[399679767,1766613790398,455.12154195,0.00012913,2]
[399679768,1766613790445,500.0,0.00012913,2]
[399679769,1766613790507,500.0,0.00012913,2]
[399679770,1766613790550,500.0,0.00012913,2]
[399679771,1766613790631,500.0,0.00012913,2]
[399679772,1766613790678,500.0,0.00012913,2]
[399679773,1766613790740,500.0,0.00012913,2]
[399679774,1766613790831,500.0,0.00012913,2]
[399679775,1766613790875,500.0,0.00012913,2]
[399679776,1766613790940,500.0,0.00012913,2]
[399679777,1766613791002,500.0,0.00012913,2]
[399679778,1766613799386,166.66,0.00012671,2]
[399679779,1766613803943,4378.22845805,0.00012814,2]
[399679780,1766613804017,1141.1977915,0.00012814,2]
[399679781,1766613810634,500.0,0.00012913,2]
[399679782,1766613810932,500.0,0.00012913,2]
[399679783,1766613811245,500.0,0.00012913,2]
[399679784,1766613811557,500.0,0.00012913,2]
[399679785,1766613811908,500.0,0.00012913,2]
[399679786,1766613812236,500.0,0.00012913,2]
[399679787,1766613812574,500.0,0.00012913,2]
[399679788,1766613813060,500.0,0.00012913,2]
[399679789,1766613813195,500.0,0.00012913,2]
[399679790,1766613813497,500.0,0.00012913,2]
[399679791,1766613813997,500.0,0.00012913,2]
[399679792,1766613814161,500.0,0.00012913,2]
[399679793,1766613814520,500.0,0.00012913,2]
[399679794,1766613814849,500.0,0.00012913,2]
[399679795,1766613815331,500.0,0.00012913,2]
[399679796,1766613815853,500.0,0.00012913,2]
[399679797,1766613820762,500.0,0.00012913,2]
[399679798,1766613841207,300.0,0.00012913,2]
[399679799,1766613846272,58.8122085,0.00012814,2]
[399679800,1766613846299,277.34309869,0.00012814,2]
[399679801,1766613901170,300.0,0.00012913,2]
[399679802,1766613901212,1200.0,0.00012913,2]
[399679803,1766613901257,300.0,0.00012913,2]
[399679804,1766613901521,300.0,0.00012913,2]
[399679805,1766613916250,183.75,0.0001232,2]
[399679806,1766613928854,155.53883648,0.00012814,2]
[399679807,1766613961188,300.0,0.00012913,2]
[399679808,1766613961820,150.0,0.00012913,2]
[399679809,1766613961976,500.0,0.00012913,2]
[399679810,1766613962028,500.0,0.00012913,2]
[399679811,1766613962091,500.0,0.00012913,2]
[399679812,1766613962143,500.0,0.00012913,2]
[399679813,1766613962187,500.0,0.00012913,2]
[399679814,1766613962229,500.0,0.00012913,2]
[399679815,1766613962303,500.0,0.00012913,2]
[399679816,1766613962366,500.0,0.00012913,2]
[399679817,1766613962413,490.04728739,0.00012913,2]
[399679818,1766613963275,300.0,0.00012913,2]
[399679819,1766613980517,500.0,0.00012913,2]
[399679820,1766613992842,267.89,0.00012877,2]
[399679821,1766614012537,500.0,0.00012913,2]
[399679822,1766614026027,200.0,0.00012914,2]
[399679823,1766614026317,257.50111466,0.00012914,2]
[399679824,1766614033679,-3658.28054958,0.00012914,2]
[399679825,1766614033769,-10000.01,0.00012914,2]
[399679826,1766614033911,-10000.01,0.00012914,2]
[399679827,1766614036412,-10000.01,0.00012914,2]
[399679828,1766614036580,-10000.01,0.00012914,2]
[399679829,1766614036604,-10000.01,0.00012914,2]
[399679830,1766614036625,-10000.01,0.00012914,2]
[399679831,1766614036659,-10000.01,0.00012914,2]
[399679832,1766614036713,-10000.01,0.00012914,2]
[399679833,1766614036747,-10000.01,0.00012914,2]
[399679834,1766614041998,-200.0,0.00012914,2]
[399679835,1766614048317,151.0,0.00012914,2]
[399679836,1766614048921,151.0,0.00012914,2]
[399679837,1766614049588,151.0,0.00012914,2]
[399679838,1766614050178,151.0,0.00012914,2]
[399679839,1766614050806,151.0,0.00012914,2]
[399679840,1766614051424,151.0,0.00012914,2]
[399679841,1766614051999,151.0,0.00012914,2]
[399679842,1766614052604,151.0,0.00012914,2]
[399679843,1766614052752,500.0,0.00012914,2]
[399679844,1766614053213,151.0,0.00012914,2]
[399679845,1766614053387,170.66882116,0.00012914,2]
[399679846,1766614053865,151.0,0.00012914,2]
[399679847,1766614054772,151.0,0.00012914,2]
[399679848,1766614054999,-7668.34117884,0.00012914,2]
[399679849,1766614055025,-10000.01,0.00012914,2]
[399679850,1766614055092,-10000.01,0.00012914,2]
[399679851,1766614055126,-10000.01,0.00012914,2]
[399679852,1766614055224,-10000.01,0.00012914,2]
[399679853,1766614055264,-10000.01,0.00012914,2]
[399679854,1766614055293,-10000.01,0.00012914,2]
[399679855,1766614055320,-10000.01,0.00012914,2]
[399679856,1766614055361,-10000.01,0.00012914,2]
[399679857,1766614075397,-500.0,0.00012914,2]
[399679858,1766614075446,-9000.01,0.00012914,2]
[399679859,1766614089324,1200.0,0.00012913,2]
[399679860,1766614091589,151.0,0.00012911,2]
[399679861,1766614111208,205.73,0.0001233,2]
[399679862,1766614130014,3240.0,0.0001233,2]
[399679863,1766614142193,150.0,0.00012913,2]
[399679864,1766614143260,300.0,0.00012913,2]
[399679865,1766614144809,155.53883648,0.00012814,2]
[399679866,1766614145325,500.0,0.00012913,2]
[399679867,1766614145457,261.36621664,0.00012913,2]
[399679868,1766614145628,536.1073104,0.00012913,2]
[399679869,1766614147038,289.93457174,0.00012913,2]
[399679870,1766614151146,500.0,0.00012913,2]
[399679871,1766614151196,500.0,0.00012913,2]
[399679872,1766614151247,500.0,0.00012913,2]
[399679873,1766614151304,500.0,0.00012913,2]
[399679874,1766614151348,500.0,0.00012913,2]
[399679875,1766614151773,500.0,0.00012913,2]
[399679876,1766614151829,10.33306474,0.00012913,2]
[399679877,1766614151858,489.66693526,0.00012913,2]
[399679878,1766614151917,500.0,0.00012913,2]
[399679879,1766614151963,500.0,0.00012913,2]
[399679880,1766614152007,500.0,0.00012913,2]
[399679881,1766614152058,500.0,0.00012913,2]
[399679882,1766614152101,500.0,0.00012913,2]
[399679883,1766614152149,500.0,0.00012913,2]
[399679884,1766614152192,500.0,0.00012913,2]
[399679885,1766614152238,500.0,0.00012913,2]
[399679886,1766614152281,500.0,0.00012913,2]
[399679887,1766614152329,500.0,0.00012913,2]
[399679888,1766614152372,500.0,0.00012913,2]
[399679889,1766614152811,500.0,0.00012913,2]
[399679890,1766614152863,500.0,0.00012913,2]
[399679891,1766614152910,500.0,0.00012913,2]
[399679892,1766614152970,500.0,0.00012913,2]
[399679893,1766614153026,500.0,0.00012913,2]
[399679894,1766614153088,500.0,0.00012913,2]
[399679895,1766614153139,500.0,0.00012913,2]
[399679896,1766614153195,500.0,0.00012913,2]
[399679897,1766614153255,10.34306474,0.00012913,2]
[399679898,1766614153284,209.30360915,0.00012913,2]
[399679899,1766614153329,500.0,0.00012913,2]
[399679900,1766614153391,500.0,0.00012913,2]
[399679901,1766614153443,500.0,0.00012913,2]
[399679902,1766614153489,500.0,0.00012913,2]
[399679903,1766614153551,500.0,0.00012913,2]
[399679904,1766614153605,500.0,0.00012913,2]
[399679905,1766614153654,500.0,0.00012913,2]
[399679906,1766614153751,151.0,0.00012911,2]
[399679907,1766614157063,1000.0,0.00012814,2]
[399679908,1766614157152,-1483.15455688,0.00012914,2]
[399679909,1766614159069,5139.70639085,0.00012849,2]
[399679910,1766614159094,4397.39548615,0.00012849,2]
[399679911,1766614190252,-166.66,0.00012329,2]
[399679912,1766614190300,-64.63195605,0.00012452,2]
[399679913,1766614193039,-102.02804395,0.00012452,2]
[399679914,1766614193064,-117.59821137,0.00012575,2]
[399679915,1766614219614,-200.90675131,0.00012575,2]
[399679916,1766614222750,-52.09324869,0.00012575,2]
[399679917,1766614222773,-269.9265456,0.00012575,2]
[399679942,1766614232056,-30.0734544,0.00012575,2]
[399679944,1766614232067,-49.06178863,0.00012575,2]
[399679946,1766614232077,-300.0,0.00012695,2]
[399679947,1766614232087,-166.66,0.00012699,2]
[399679948,1766614232097,-300.0,0.00012813,2]
[399679949,1766614232106,-1200.0,0.00012813,2]
[399679950,1766614232116,-2500.0,0.00012814,2]
[399679951,1766614232126,-8541.28742783,0.00012814,2]
[399679952,1766614232136,-166.66,0.00012822,2]
[399679953,1766614232146,-10587.902337,0.00012849,2]
[399679954,1766614232156,-151.0,0.00012911,2]
[399679955,1766614232166,-33952.51563652,0.00012914,2]
[399679956,1766614232177,-435.29300942,0.00012914,2]
[399679957,1766614232190,-6538.05098953,0.00012914,2]
[399679958,1766614232202,-2850.15,0.00012914,2]
[399679959,1766614232234,-2303.22682107,0.00012914,2]
[399679960,1766614232246,-82982.30087,0.00012914,2]
[399679961,1766614232258,-1490.50948365,0.00012914,2]
[399679978,1766614238286,-3001.74636328,0.00012914,2]
[399679979,1766614238338,-5626.80000001,0.00012914,2]
[399679980,1766614238350,-1754.81785,0.00012914,2]
[399679982,1766614238383,-5164.11974986,0.00012914,2]
[399679983,1766614238402,-711.441254,0.00012914,2]
[399680161,1766614240203,-12220.65,0.00012914,2]
[399680175,1766614240338,-308.60960215,0.00012914,2]
[399680187,1766614240445,-386.54489977,0.00012914,2]
[399680189,1766614240458,-307.85433227,0.00012914,2]
[399680191,1766614240470,-440.8389,0.00012914,2]
[399680193,1766614240481,-911.440902,0.00012914,2]
[399680209,1766614240629,-1517.46946338,0.00012914,2]
[399680212,1766614240644,-999.21765633,0.00012914,2]
[399680457,1766614243302,-206.15679975,0.00012914,2]
[399680458,1766614243562,-872.26117996,0.00012914,2]
[399680459,1766614243687,-359.63511905,0.00012914,2]
[399680460,1766614243700,-925.9169098,0.00012914,2]
[399680472,1766614247151,-12613.98367604,0.00012914,2]
[399680473,1766614247370,-1110.06940007,0.00012914,2]
[399680474,1766614247383,-1800.00000001,0.00012914,2]
[399680475,1766614247396,-1098.0,0.00012914,2]
[399680476,1766614247408,-1994.61084385,0.00012914,2]
[399680477,1766614247421,-2228.52430962,0.00012914,2]
[399680478,1766614247438,-1362.65454814,0.00012914,2]
[399680479,1766614271944,224.19950909,0.00012792,2]
[399680480,1766614274612,155.24950802,0.0001284,2]
[399680481,1766614274820,150.0,0.0001284,2]
[399680482,1766614275109,150.0,0.00012867,2]
[399680483,1766614275218,500.0,0.0001284,2]
[399680484,1766614275291,187.56819378,0.00012895,2]
[399680485,1766614275361,500.0,0.00012867,2]
[399680486,1766614275455,500.0,0.0001284,2]
[399680487,1766614275500,150.0,0.0001284,2]
[399680488,1766614275548,277.79305278,0.00012895,2]
[399680489,1766614275625,500.0,0.00012867,2]
[399680490,1766614275693,500.0,0.0001284,2]
[399680491,1766614275733,150.0,0.0001284,2]
[399680492,1766614275873,500.0,0.00012895,2]
[399680493,1766614275937,500.0,0.00012867,2]
[399680494,1766614276357,500.0,0.00012895,2]
[399680495,1766614287475,2541.86586204,0.00012814,2]
[399680496,1766614290054,2237.53338338,0.00012814,2]
[399680497,1766614290080,44.15759368,0.00012814,2]
[399680498,1766614294154,1642.742,0.00012656,2]
[399680499,1766614294375,192.033,0.00012656,2]
[399680500,1766614300531,1600.0,0.00012577,2]
[399680501,1766614309101,-240.95275106,0.00012914,2]
[399680502,1766614313708,1000.0,0.00012814,2]
[399680503,1766614321848,150.0,0.00012913,2]
[399680504,1766614323296,283.0,0.00012913,2]
[399680505,1766614325703,5088.07740632,0.00012814,2]
[399680506,1766614325728,10000.01,0.00012814,2]
[399680507,1766614325753,10000.01,0.00012814,2]
[399680508,1766614325777,10000.01,0.00012814,2]
[399680509,1766614325800,10000.01,0.00012814,2]
[399680510,1766614325823,10000.01,0.00012814,2]
[399680511,1766614325847,6854.05499368,0.00012814,2]
[399680512,1766614325925,527.13781996,0.00012913,2]
[399680513,1766614328846,201.68796137,0.00012914,2]
[399680514,1766614331653,151.0,0.00012911,2]
[399680515,1766614332174,2266.12922499,0.00012814,2]
[399680516,1766614332199,233.87077501,0.00012814,2]
[399680517,1766614332752,200.0,0.00012914,2]
[399680518,1766614333422,1004.87064085,0.00012913,2]
[399680519,1766614337767,5526.0,0.000122,5]
[399680520,1766614337998,5526.0,0.00012,3]
[399680521,1766614339660,-352.5492956,0.000118,2]
[399680522,1766614342406,-3950.00665364,0.000118,2]
[399680523,1766614342875,-193.90653799,0.000118,2]
[399680524,1766614344153,-10000.01,0.000118,2]
[399680525,1766614344276,-4728.48248723,0.000118,2]
[399680526,1766614344309,-543.04502554,0.000118,2]
[399680527,1766614344413,-500.0,0.00012913,2]
[399680528,1766614344451,-500.0,0.00012913,2]
[399680529,1766614344490,-500.0,0.00012913,2]